[Event "26th Hit Open-A 2022"]
[Site "Nova Gorica"]
[Date "2022.09.18"]
[Round "4.30"]
[White "Thuesen, Mogens"]
[Black "Mihelic, Vesna"]
[Result "1-0"]
[ECO "D36"]
[WhiteElo "2242"]
[BlackElo "2031"]
[Annotator "RC"]
[PlyCount "125"]
[EventDate "2022.09.16"]
[EventType "swiss"]
[EventCountry "SLO"]
[SourceTitle "playchess.com"]
[Source "ChessBase"]
[SourceQuality "1"]
[TimeControl "5400+30"]

1. d4 {[%emt 0:00:20]} d5 {[%emt 0:00:07]} 2. c4 {[%emt 0:00:05]} e6 {[%emt 0:00:05]} 3. Nc3 {[%emt 0:00:13]} Nf6 {[%emt 0:00:08]} 4. cxd5 {[%emt 0:00:13]} exd5 {[%emt 0:00:06]} 5. Bg5 {[%emt 0:00:05]} Nbd7 {[%emt 0:00:07]} 6. e3 {[%emt 0:00:10]} Be7 {[%emt 0:00:06]} 7. Bd3 {[%emt 0:00:33]} c6 {[%emt 0:00:07]} 8. Nge2 {[%emt 0:00:43]} Nf8 {[%emt 0:01:25]} 9. Qc2 {[%emt 0:00:28]} Ne6 {[%emt 0:00:50]} 10. Bh4 {[%emt 0:00:47]} g6 {[%emt 0:00:49]} 11. O-O {[%emt 0:05:51]} O-O {[%emt 0:00:33]} 12. f3 {[%emt 0:01:08]} b6 {[%emt 0:09:06]} 13. Rad1 {[%emt 0:05:38]} Ng7 {[%emt 0:03:08]} 14. Kh1 {[%emt 0:10:25]} Be6 {[%emt 0:08:27]} 15. Bf2 {[%emt 0:02:51]} Rc8 {[%emt 0:02:50]} 16. Qd2 {[%emt 0:12:05]} Qc7 {[%emt 0:05:55]} 17. e4 {[%emt 0:05:05]} Rcd8 {[%emt 0:03:36]} 18. e5 {[%emt 0:01:43]} Nd7 {[%emt 0:01:52]} 19. f4 {[%emt 0:01:11]} f6 {[%emt 0:01:38]} 20. Bh4 {[%emt 0:02:31]} Bf5 {[%emt 0:08:19]} 21. Rc1 {[%emt 0:07:12]} Nb8 {[%emt 0:06:42]} 22. Ng3 {[%emt 0:08:31]} Bxd3 {[%emt 0:03:19]} 23. Qxd3 {[%emt 0:00:17]} fxe5 {[%emt 0:00:46]} 24. Bxe7 {[%emt 0:00:10]} Qxe7 {[%emt 0:00:05]} 25. dxe5 {[%emt 0:01:44]} Nd7 {[%emt 0:03:37]} 26. Nce2 {[%emt 0:01:59]} Nc5 {[%emt 0:03:00]} 27. Qa3 {[%emt 0:00:28]} Qc7 {[%emt 0:05:23]} 28. Nd4 {[%emt 0:02:09]} Nge6 {[%emt 0:01:25]} 29. Nge2 {[%emt 0:04:33]} a5 {[%emt 0:01:58]} 30. Qh3 {[%emt 0:02:11]} Rde8 {[%emt 0:02:58]} 31. b3 {[%emt 0:01:14]} Nd8 {[%emt 0:01:04]} 32. a3 {[%emt 0:00:29]} Nce6 {[%emt 0:01:17]} 33. Rxc6 {[%emt 0:03:51]} Nxc6 {[%emt 0:01:10]} 34. Nxe6 {[%emt 0:00:06]} Qe7 {[%emt 0:02:33]} 35. Nxf8 {[%emt 0:00:09]} Rxf8 {[%emt 0:00:06]} 36. Rc1 {[%emt 0:01:10]} Nd8 {[%emt 0:01:35]} 37. Qd3 {[%emt 0:01:33]} Qd7 {[%emt 0:01:55]} 38. g3 {[%emt 0:03:33]} Ne6 {[%emt 0:00:42]} 39. Nd4 {[%emt 0:00:50]} Rc8 {[%emt 0:02:32]} 40. Rd1 {[%emt 0:01:29]} Nc5 {[%emt 0:01:25]} 41. Qf3 {[%emt 0:03:54]} Ne4 {[%emt 0:01:57]} 42. Kg2 {[%emt 0:00:10]} Rc3 {[%emt 0:03:18]} 43. Rd3 {[%emt 0:00:27]} Rc1 {[%emt 0:04:50]} 44. Ne2 {[%emt 0:01:36]} Rc2 {[%emt 0:00:18]} 45. Qxe4 {[%emt 0:06:49]} dxe4 {[%emt 0:00:02]} 46. Rxd7 {[%emt 0:00:10]} Rxe2+ {[%emt 0:00:07]} 47. Kh3 {[%emt 0:00:11]} Rb2 {[%emt 0:01:13]} 48. Kg4 {[%emt 0:01:40]} h6 {[%emt 0:05:39]} 49. Rd6 {[%emt 0:01:08]} Rxh2 {[%emt 0:01:21]} 50. Rxg6+ {[%emt 0:01:31]} Kf7 {[%emt 0:00:01]} 51. Rxb6 {[%emt 0:00:29]} e3 {[%emt 0:00:10]} 52. Rc6 {[%emt 0:00:14]} Rb2 {[%emt 0:01:15]} 53. Rc3 {[%emt 0:01:00]} e2 {[%emt 0:00:35]} 54. Re3 {[%emt 0:00:06]} Rxb3 {[%emt 0:00:35]} 55. Rxe2 {[%emt 0:00:05]} Rxa3 {[%emt 0:00:05]} 56. f5 {[%emt 0:01:10]} h5+ {[%emt 0:02:28]} 57. Kh4 {[%emt 0:00:35]} a4 {[%emt 0:01:17]} 58. e6+ {[%emt 0:00:17]} Ke8 {[%emt 0:00:20]} 59. Kxh5 {[%emt 0:01:54]} Rxg3 {[%emt 0:00:10]} 60. f6 {[%emt 0:00:35]} a3 {[%emt 0:00:55]} 61. Rc2 {[%emt 0:00:24]} Kd8 {[%emt 0:00:16]} 62. e7+ {[%emt 0:00:13]} Kd7 {[%emt 0:00:13]} 63. Rd2+ {[%emt 0:00:30]} 1-0

[Event "26th Hit Open-A 2022"]
[Site "Nova Gorica"]
[Date "2022.09.18"]
[Round "4.31"]
[White "Alexandrova, Angelina"]
[Black "Acimovic, Vasja"]
[Result "0-1"]
[ECO "D11"]
[WhiteElo "1842"]
[BlackElo "2237"]
[Annotator "TA"]
[PlyCount "60"]
[EventDate "2022.09.16"]
[EventType "swiss"]
[EventCountry "SLO"]
[SourceTitle "playchess.com"]
[Source "ChessBase"]
[SourceQuality "1"]
[TimeControl "5400+30"]

{[%evp 19,60,-5,-8,-23,-25,-24,-25,-27,-10,-10,-3,-15,-15,-132,-135,-128,-135,-135,-125,-128,-145,-150,-121,-176,-129,-221,-221,-210,-211,-247,-242,-268,-260,-314,-283,-356,-281,-427,-427,-692,-671,-1245,-1236]} 1. Nf3 {[%emt 0:00:03]} d5 {[%emt 0:01:52]} 2. d4 {[%emt 0:00:10]} Nf6 {[%emt 0:00:11]} 3. g3 {[%emt 0:00:07]} c6 {[%emt 0:00:26]} 4. Bg2 {[%emt 0:00:06]} Bf5 {[%emt 0:00:06]} 5. O-O {[%emt 0:00:49]} e6 {[%emt 0:00:07]} 6. Nbd2 {[%emt 0:01:22]} h6 {[%emt 0:00:17]} 7. c4 {[%emt 0:00:29]} Be7 {[%emt 0:00:56]} 8. a3 {[%emt 0:03:23]} a5 {[%emt 0:02:03]} 9. b3 {[%emt 0:02:10]} O-O {[%emt 0:00:10]} 10. Bb2 {[%emt 0:00:05]} Nbd7 {[%emt 0:00:18]} 11. c5 {[%emt 0:01:14] D11: Slav Defence: 3 Nf3 sidelines and 3...Nf6 4 e3 Bg4.} b6 {[%emt 0:06:08]} 12. b4 {[%emt 0:01:05]} Qc7 {[%emt 0:00:54]} 13. Bc3 {[%emt 0:05:10] [#] Black has an edge.} bxc5 $146 {[%emt 0:03:53]} ({Predecessor:} 13... Qb7 14. Nh4 Bh7 15. e3 axb4 16. axb4 bxc5 17. dxc5 Bd3 {½-½ (17) Weissenfels,G (1451)-Prohl,F (1818) GER email 2009}) 14. bxc5 {[%emt 0:00:37]} a4 {[%emt 0:00:43]} 15. Nh4 {[%emt 0:01:52]} Bh7 {[%emt 0:00:10]} 16. f4 {[%emt 0:01:33]} (16. e3 $1 $11 {was the only way to keep the balance.}) 16... Ng4 $17 {[%emt 0:02:15]} 17. Qc1 {[%emt 0:02:01]} Bxh4 {[%emt 0:00:09]} 18. gxh4 {[%emt 0:00:03]} Ne3 $36 {[%emt 0:02:40][%mdl 2048] Black is in control.} 19. Rf3 {[%emt 0:01:28]} Nxg2 {[%emt 0:03:44] Black has more active pieces.} 20. Kxg2 {[%emt 0:00:03]} Nf6 {[%emt 0:00:40][%cal Bd7f6,Bf6h5,Bh5g3][%mdl 32]} 21. e3 {[%emt 0:06:05]} (21. Rf1 $17) 21... Qe7 {[%emt 0:04:56]} (21... Ne4 $19 {Strongly threatening ...Nxd2.} 22. Rf1 Nxc3 23. Qxc3 Rfb8) 22. Rg3 {[%emt 0:02:23]} (22. Kg1 $17 {was the only chance.}) 22... Nh5 $19 {[%emt 0:00:34][%csl LRg3,LRh4]} 23. Qe1 {[%emt 0:01:33]} Nxg3 {[%emt 0:00:48]} 24. Qxg3 {[%emt 0:01:13]} Kh8 {[%emt 0:00:30]} 25. Kf2 {[%emt 0:00:16]} f6 {[%emt 0:00:37]} 26. Rg1 {[%emt 0:01:40]} Rab8 {[%emt 0:01:18]} 27. Bb4 {[%emt 0:02:49]} e5 {[%emt 0:05:31]} 28. Nf3 {[%emt 0:02:58]} (28. Bc3 $142) 28... Be4 {[%emt 0:01:44] Black is clearly winning.} 29. dxe5 {[%emt 0:01:06]} (29. Nd2 $142) 29... fxe5 {[%emt 0:03:01]} 30. Nxe5 {[%emt 0:00:19]} Qxe5 {[%emt 0:00:33] Black took control after the opening.  Weighted Error Value: White=1.00/Black=0.13 (very precise)} 0-1

[Event "26th Hit Open-A 2022"]
[Site "Nova Gorica"]
[Date "2022.09.18"]
[Round "4.32"]
[White "Garsky, Vladyslav"]
[Black "Cirkvencic, Franci"]
[Result "1-0"]
[ECO "B22"]
[WhiteElo "2229"]
[BlackElo "1987"]
[Annotator "TA"]
[PlyCount "95"]
[EventDate "2022.09.16"]
[EventType "swiss"]
[EventCountry "SLO"]
[SourceTitle "playchess.com"]
[Source "ChessBase"]
[SourceQuality "1"]
[TimeControl "5400+30"]

{[%evp 12,95,-5,-14,-4,-14,0,0,0,0,0,-4,35,17,24,-40,-68,-93,-93,-95,55,57,114,116,130,114,157,163,208,202,207,153,292,281,399,399,404,411,389,401,392,375,367,327,314,274,335,306,441,401,394,406,404,395,504,429,429,430,415,410,410,395,493,448,410,273,461,499,696,677,789,787,912,960,1008,1003,1320,1332,1298,1289,1214,1198,1221,1205,2179,1262]} 1. e4 {[%emt 0:00:06]} c5 {[%emt 0:00:19]} 2. c3 {[%emt 0:00:06]} Nf6 {[%emt 0:00:12]} 3. e5 {[%emt 0:00:02]} Nd5 {[%emt 0:00:07]} 4. Bc4 {[%emt 0:00:03]} Nb6 {[%emt 0:02:35]} 5. Bb3 {[%emt 0:00:04]} d5 {[%emt 0:01:12]} 6. d4 {[%emt 0:00:07]} cxd4 {[%emt 0:06:51]} 7. cxd4 {[%emt 0:00:08]} Bf5 {[%emt 0:00:30] B22: Sicilian: 2 c3.} 8. Ne2 {[%emt 0:00:36]} e6 {[%emt 0:00:39]} 9. O-O {[%emt 0:00:36]} Nc6 {[%emt 0:07:03] The position is equal.} 10. Ng3 {[%emt 0:00:28]} Bg6 {[%emt 0:00:13]} 11. f4 {[%emt 0:00:11][%cal Bf2f4,Bf4f5][%mdl 32]} Ne7 {[%emt 0:03:04] [#] Against f5} 12. Nc3 $146 {[%emt 0:00:36]} ({Predecessor:} 12. Bc2 Bxc2 13. Qxc2 Rc8 14. Nc3 Nc6 15. Nge2 g6 16. a3 Nc4 17. b3 N4a5 18. b4 {0-1 (36) Maurino,L-Dansker,G Bratislava 1993}) 12... h5 {[%emt 0:02:42]} 13. Na4 {[%emt 0:12:19]} (13. Qf3 $11) 13... h4 $15 {[%emt 0:02:03]} 14. Nxb6 {[%emt 0:00:56]} Qxb6 {[%emt 0:00:31]} 15. Ba4+ {[%emt 0:00:03] [#]} Nc6 {[%emt 0:00:16]} (15... Kd8 $1 $17 16. f5 Bh7) 16. f5 $14 {[%emt 0:00:54]} hxg3 {[%emt 0:00:47] White stays focused until the end.} (16... exf5 $1 $14 17. Nxf5 Rh5 18. Nd6+ Bxd6 19. exd6 h3) 17. fxg6 $16 {[%emt 0:00:02]} O-O-O {[%emt 0:27:57]} (17... gxh2+ $2 18. Kh1 $18) 18. Bxc6 {[%emt 0:01:27]} (18. gxf7 Bc5 19. h3 Nxd4) 18... bxc6 {[%emt 0:00:41]} 19. h3 {[%emt 0:00:13]} (19. Rxf7 $6 Rxh2 20. Qd3 Bb4 21. Rxg7 Rdh8 $11) 19... fxg6 {[%emt 0:16:57]} 20. Bg5 {[%emt 0:00:44] Prevents Be7.} Rd7 {[%emt 0:00:49]} 21. Rc1 {[%emt 0:00:15]} Be7 {[%emt 0:06:35] [#]} (21... c5 $16 22. Rf3 c4) 22. Qa4 $1 $18 {[%emt 0:00:27]} Kb7 {[%emt 0:03:54]} (22... Kc7 {was worth a try.}) (22... Kb8 23. Bxe7) 23. Bxe7 {[%emt 0:01:12] Chess con chili.} (23. Rf7 Re8 24. Rxg7 Rc7 $18) 23... Rxe7 {[%emt 0:00:07]} 24. Rf3 {[%emt 0:00:05]} Ka8 {[%emt 0:04:22]} 25. Rb3 {[%emt 0:00:06]} Qc7 {[%emt 0:00:57]} 26. Rxc6 {[%emt 0:00:16]} Qd7 {[%emt 0:00:09]} 27. Rbc3 {[%emt 0:03:00]} Rb8 {[%emt 0:00:34]} 28. b3 {[%emt 0:03:14]} ({Resist} 28. Rxg3 $6 Rb6 29. Rgc3 Re8 $18) 28... Ree8 {[%emt 0:05:20]} 29. Qa5 {[%emt 0:00:24] Threatens to win with Rc7.} ({Don't take} 29. Rxg3 Rb6 30. Rc4 Qxa4 31. Rxa4 Re7 32. Rxg6 Rc6 $18) 29... Qf7 {[%emt 0:01:02]} (29... Rb7 {was necessary.} 30. Qc5 Re7 31. Rxg3 g5 32. Rxg5 Rc7) 30. Rf3 {[%emt 0:00:18] Active counter play!} Qb7 {[%emt 0:01:03]} 31. Rc7 {[%emt 0:00:24]} Qb6 {[%emt 0:00:40]} 32. Qxb6 {[%emt 0:00:04]} axb6 {[%emt 0:00:10]} 33. Rxg3 {[%emt 0:00:46][%mdl 4096] Endgame KRR-KRR} Rb7 {[%emt 0:00:41]} 34. Rc6 {[%emt 0:00:17]} Ka7 {[%emt 0:00:32]} 35. Rxg6 {[%emt 0:00:10]} Rbe7 {[%emt 0:00:06]} 36. b4 {[%emt 0:00:21]} b5 {[%emt 0:02:01]} 37. Kf2 {[%emt 0:00:28]} Kb7 {[%emt 0:00:36]} 38. Rd6 {[%emt 0:00:05]} Kc7 $2 {[%emt 0:01:32]} (38... Ra8 39. Kg3 Ra3+ 40. Kf4 Rf7+ 41. Kg4 Rxa2) 39. h4 {[%emt 0:00:45][%cal Bh3h4,Bh4h5][%mdl 32] White is clearly winning.} Kb7 {[%emt 0:01:06]} 40. h5 {[%emt 0:00:09]} Kc7 {[%emt 0:00:15]} 41. g4 {[%emt 0:00:03]} Ra8 {[%emt 0:01:21]} 42. Rgxe6 {[%emt 0:00:18]} Rf7+ {[%emt 0:01:15]} 43. Kg3 {[%emt 0:00:04]} Rxa2 {[%emt 0:00:58]} 44. Rc6+ {[%emt 0:00:30]} Kb7 {[%emt 0:00:19]} 45. Rb6+ {[%emt 0:00:07]} Ka7 {[%emt 0:00:20]} 46. Rxb5 {[%emt 0:00:11]} Ra3+ {[%emt 0:00:39]} 47. Kh4 {[%emt 0:00:04]} Rf1 {[%emt 0:01:25]} 48. Rxd5 {[%emt 0:00:19] Weighted Error Value: White=0.16 (very precise) /Black=0.52} 1-0

[Event "26th Hit Open-A 2022"]
[Site "Nova Gorica"]
[Date "2022.09.18"]
[Round "4.33"]
[White "Vidmar, Klara"]
[Black "Marchesich, Giovanni"]
[Result "1/2-1/2"]
[ECO "B13"]
[WhiteElo "1788"]
[BlackElo "2189"]
[Annotator "TA"]
[PlyCount "42"]
[EventDate "2022.09.16"]
[EventType "swiss"]
[EventCountry "SLO"]
[SourceTitle "playchess.com"]
[Source "ChessBase"]
[SourceQuality "1"]
[TimeControl "5400+30"]

{[%evp 12,42,0,-9,0,-18,-15,-20,-17,-34,35,53,95,84,87,84,71,92,90,70,112,25,23,27,52,32,117,117,163,49,68,-17,31]} 1. e4 {[%emt 0:00:11]} c6 {[%emt 0:00:20]} 2. d4 {[%emt 0:00:25]} d5 {[%emt 0:00:21]} 3. exd5 {[%emt 0:00:14]} cxd5 {[%emt 0:00:19]} 4. c4 {[%emt 0:00:06]} Nf6 {[%emt 0:00:54]} 5. Nc3 {[%emt 0:00:16]} Nc6 {[%emt 0:00:44]} 6. Bg5 {[%emt 0:00:30]} Be6 {[%emt 0:01:29]} 7. c5 {[%emt 0:01:08] 7.Be2 gains popularity.} g6 {[%emt 0:01:32] B13: Caro-Kann: Exchange Variation and Panov-Botvinnik Attack.} 8. Nf3 {[%emt 0:02:13]} Bg7 {[%emt 0:03:26]} 9. Bb5 {[%emt 0:01:41]} O-O {[%emt 0:02:47]} 10. O-O {[%emt 0:00:59] [#]} Nd7 $146 {[%emt 0:20:05]} ({Better is} 10... Ne4 $15 11. Be3 Bg4) ({Predecessor:} 10... Ne4 11. Re1 Nxg5 12. Nxg5 Nxd4 13. Bd3 Qd7 14. Rc1 Bg4 15. f3 Bf5 16. g4 Bxd3 17. Qxd3 {0-1 (29) Tymrakiewicz,R (2205)-Gunina,V (2471) Chess.com INT 2022}) 11. Re1 $14 {[%emt 0:08:57]} Ndb8 {[%emt 0:02:51]} 12. h3 {[%emt 0:03:29]} h6 {[%emt 0:04:19]} 13. Bf4 {[%emt 0:03:44]} g5 {[%emt 0:05:23]} 14. Be5 {White has more active pieces.} Nxe5 {[%emt 0:02:43]} 15. Nxe5 {[%emt 0:01:51][%cal Oe5g6]} ({Of course not} 15. dxe5 Nc6 $11) 15... Bf5 {[%emt 0:01:57] [#] Against Ng6} 16. g4 {[%emt 0:11:37]} (16. c6 $1 $16 {[%cal Rc6b7]} Bc8 17. Qh5) 16... Bh7 $1 $11 {[%emt 0:00:47]} 17. c6 {[%emt 0:01:42]} Nxc6 {[%emt 0:10:11]} 18. Bxc6 {[%emt 0:02:41]} bxc6 {[%emt 0:03:58]} (18... Bxe5 $14 19. Bxb7 Rb8) 19. Nxc6 $16 {[%emt 0:00:06]} Qb6 (19... Qd7 $16 20. Nxe7+ Kh8) 20. Nxe7+ {[%emt 0:00:02] Pair of Knights!} (20. Nxd5 $18 Qxb2 21. Re2 (21. Rxe7 Rae8 $16) (21. Ncxe7+ Kh8 $14)) 20... Kh8 $14 {[%emt 0:00:02]} 21. Nexd5 (21. Re2 $14) 21... Qxd4 {Weighted Error Value: White=0.30/Black=0.25 (precise)} (21... Qxb2 $11 22. a3 Rad8) 1/2-1/2

[Event "26th Hit Open-A 2022"]
[Site "Nova Gorica"]
[Date "2022.09.18"]
[Round "4.34"]
[White "Lohia, Sohum"]
[Black "Budai, Leonardo"]
[Result "1-0"]
[ECO "C55"]
[WhiteElo "2185"]
[BlackElo "1676"]
[Annotator "TA"]
[PlyCount "59"]
[EventDate "2022.09.16"]
[EventType "swiss"]
[EventCountry "SLO"]
[SourceTitle "playchess.com"]
[Source "ChessBase"]
[SourceQuality "1"]
[TimeControl "5400+30"]

{[%evp 18,59,24,3,8,11,14,8,28,16,37,37,48,10,26,17,17,0,0,-20,39,29,93,73,241,236,230,206,197,216,362,368,628,589,949,949,912,955,931,906,855,850,1378,1296]} 1. e4 {[%emt 0:00:04]} e5 {[%emt 0:00:07]} 2. Nf3 {[%emt 0:00:08]} Nc6 {[%emt 0:00:07]} 3. Bb5 {[%emt 0:00:41]} a6 {[%emt 0:00:16]} 4. Ba4 {[%emt 0:00:09]} Nf6 {[%emt 0:00:12]} 5. d3 {[%emt 0:00:12]} b5 {[%emt 0:00:37]} 6. Bb3 {[%emt 0:00:09]} Be7 {[%emt 0:00:26]} 7. O-O {[%emt 0:00:39]} O-O {[%emt 0:01:16]} 8. c3 {[%emt 0:00:22]} d6 {[%emt 0:02:32]} 9. h3 $1 {[%emt 0:00:17][%mdl 4] now scores much better than the old 9.Re1.} Na5 {[%emt 0:00:28]} 10. Bc2 {[%emt 0:00:18]} c5 {[%emt 0:00:15] C55: Two Knights: 4 d3, 4 d4 exd4 5 e5 and Max Lange Attack.} 11. d4 {[%emt 0:01:05]} cxd4 {[%emt 0:01:09]} 12. cxd4 {[%emt 0:00:08]} Qc7 {[%emt 0:00:17] The position is equal.} 13. Nc3 {[%emt 0:03:33]} Bb7 {[%emt 0:07:01]} 14. d5 {[%emt 0:01:42]} Rac8 {[%emt 0:02:20] [#] Strongly threatening ...b4.} 15. a3 {[%emt 0:05:09] [#]} (15. Bb1 $5 {[%cal Rc3e2]}) 15... Nc4 $146 {[%emt 0:03:45]} ({Predecessor:} 15... Nd7 16. Ng5 h6 17. Nf3 Nc4 18. Re1 Kh8 19. Nd2 Nxd2 20. Bxd2 Nb6 21. Qf3 Nc4 {0-1 (29) Boi,P (1577)-Korinek,J (1713) LSS email 2011}) 16. Nd2 {[%emt 0:01:01]} Nb6 {[%emt 0:12:41]} 17. Bd3 {[%emt 0:03:15]} Nfd7 {[%emt 0:01:04][%cal Of7f5]} 18. Nb3 {[%emt 0:01:45]} Qd8 {[%emt 0:18:39]} (18... Na4 $11) 19. a4 $14 {[%emt 0:18:27]} bxa4 {[%emt 0:14:32]} (19... b4 $11 20. Na2 Nxa4) 20. Nxa4 $16 {[%emt 0:00:25]} Nc5 $2 {[%emt 0:01:21] This costs Black the game.} (20... Nxa4 $16 21. Rxa4 Rb8) 21. Naxc5 $18 {[%emt 0:04:00]} dxc5 {[%emt 0:00:49]} 22. Bxa6 {[%emt 0:00:39]} Bxa6 {[%emt 0:02:51]} 23. Rxa6 {[%emt 0:00:08]} f5 {[%emt 0:01:30]} (23... Qc7 {was necessary.} 24. Qc2 Ra8 25. Rxa8 Rxa8) 24. Na5 {[%emt 0:02:52] [#] Threatens to win with Nc6.} Rf6 {[%emt 0:09:50]} (24... Nd7 25. exf5 Bf6) 25. Nc6 {[%emt 0:00:38] White is clearly winning.} Qc7 {[%emt 0:00:16]} 26. Ra7 {[%emt 0:00:30]} Rxc6 {[%emt 0:00:46]} 27. Rxc7 {[%emt 0:00:09]} R6xc7 {[%emt 0:00:05]} 28. d6 {[%emt 0:00:56][%cal Bd5d6,Bd6e7][%mdl 32]} Rd7 {[%emt 0:01:21]} 29. Qb3+ {[%emt 0:00:18]} Kh8 {[%emt 0:00:10]} 30. dxe7 {[%emt 0:00:12] Weighted Error Value: White=0.06 (flawless) /Black=0.62} 1-0

[Event "26th Hit Open-A 2022"]
[Site "Nova Gorica"]
[Date "2022.09.18"]
[Round "4.35"]
[White "Bajec, Borut"]
[Black "Herega, Nejc"]
[Result "0-1"]
[ECO "D94"]
[WhiteElo "1732"]
[BlackElo "2146"]
[Annotator "TA"]
[PlyCount "106"]
[EventDate "2022.09.16"]
[EventType "swiss"]
[EventCountry "SLO"]
[SourceTitle "playchess.com"]
[Source "ChessBase"]
[SourceQuality "1"]
[TimeControl "5400+30"]

{[%evp 13,106,-9,0,-37,-45,-45,-41,-126,-143,-139,-140,-116,-110,-121,-125,-107,-91,-97,-52,-52,-29,-31,-31,-34,-16,-23,-8,-10,3,-40,-49,-56,-55,-52,-55,-47,-35,-71,-33,-81,-66,-67,-58,-57,-50,-50,-44,-56,-20,-23,-27,-62,-39,-98,-96,-93,-51,-64,-62,-70,-70,-75,-77,-332,-329,-325,-318,-318,-233,-226,-218,-292,-218,-1927,-2084,-29959,-29963,-29962,-29964,-29961,-11586,-4466,-4423,-29968,-29964,-11666,-5511,-29980,-29981,-29981,-29982,-29988,-29985,-29985,-29986]} 1. d4 {[%emt 0:05:47]} Nf6 {[%emt 0:00:10]} 2. c4 {[%emt 0:00:39]} g6 {[%emt 0:00:11]} 3. Nc3 {[%emt 0:00:41]} d5 {[%emt 0:00:13]} 4. e3 {[%emt 0:00:54]} Bg7 {[%emt 0:00:31]} 5. Nf3 {[%emt 0:00:24]} O-O {[%emt 0:00:37]} 6. Bd3 {[%emt 0:00:48]} c5 {[%emt 0:00:50]} 7. O-O {[%emt 0:01:46]} Nc6 {[%emt 0:01:31]} 8. a3 {[%emt 0:01:38] D94: Grünfeld: 4 Nf3 Bg7 5 e3.} cxd4 {[%emt 0:08:17]} 9. exd4 {[%emt 0:00:37]} Bg4 {[%emt 0:01:15]} 10. h3 {[%emt 0:01:36]} (10. Be3 $15) 10... Bxf3 $17 {[%emt 0:01:26]} 11. Qxf3 {[%emt 0:00:09]} Nxd4 {[%emt 0:01:06]} 12. Qd1 {[%emt 0:00:11]} dxc4 {[%emt 0:02:21]} 13. Bxc4 {[%emt 0:00:12]} Rc8 {[%emt 0:02:16] [#]} 14. Ba2 $146 {[%emt 0:00:25]} ({Predecessor:} 14. Bb5 Rxc3 15. bxc3 Nxb5 16. Qb3 Nxc3 17. Bb2 Ne2+ 18. Kh1 Qd5 {0-1 (18) Michels,M-Mellal,H Griesheim 2003}) 14... Qd7 {[%emt 0:01:27]} 15. Be3 {[%emt 0:01:42]} e5 {[%emt 0:06:59] Black is more active.} 16. f4 {[%emt 0:01:48]} Nf5 {[%emt 0:04:58] Pair of Knights!} 17. Qxd7 {[%emt 0:05:00]} Nxd7 {[%emt 0:00:17]} 18. Bxa7 {[%emt 0:00:12]} Ra8 {[%emt 0:07:50]} 19. Nb5 {[%emt 0:07:38]} exf4 {[%emt 0:06:42][%cal Oa8a7]} 20. Rxf4 {[%emt 0:19:48]} Be5 {[%emt 0:07:47]} 21. Rc4 {[%emt 0:07:30]} Bxb2 {[%emt 0:08:55]} 22. Rb1 {[%emt 0:00:47] [#]} Bxa3 {[%emt 0:01:54][%cal Ob7b6]} 23. Rc7 {[%emt 0:00:51] [#]} Bc5+ $1 {[%emt 0:08:06]} 24. Bxc5 {[%emt 0:08:02]} Nxc5 {[%emt 0:01:20]} 25. Bd5 {[%emt 0:01:24]} Ne6 {[%emt 0:05:13]} 26. Rxb7 {[%emt 0:03:32]} (26. Bxe6 $15 fxe6 27. Rxb7) 26... Rab8 {[%emt 0:02:21]} 27. Nc3 {[%emt 0:01:22]} Rxb7 {[%emt 0:03:40]} 28. Rxb7 {[%emt 0:02:41]} Nfd4 {[%emt 0:01:08]} 29. Ne4 {[%emt 0:00:49]} Rd8 {[%emt 0:01:17]} 30. Ba2 {[%emt 0:04:22]} Kg7 {[%emt 0:01:58]} 31. Kf2 {[%emt 0:00:41]} h6 {[%emt 0:01:26]} 32. Kg3 {[%emt 0:02:51]} g5 {[%emt 0:01:39]} 33. Kg4 {[%emt 0:01:08]} (33. Kf2 $15) 33... Kg6 {[%emt 0:00:50] Strongly threatening ...f5+.} 34. Kg3 {[%emt 0:01:39]} Ne2+ {[%emt 0:01:45]} 35. Kf2 {[%emt 0:01:27]} N2f4 {[%emt 0:00:30]} 36. g3 {[%emt 0:02:53]} Nxh3+ {[%emt 0:02:45]} 37. Kg2 {[%emt 0:00:10] [#]} g4 {[%emt 0:00:28] Hoping for ...Rd4.} 38. Re7 $2 {[%emt 0:00:17][%mdl 8192] Now White is beyond hope.} (38. Rb6 $17) 38... Nhg5 $19 {[%emt 0:01:33]} 39. Bxe6 {[%emt 0:01:50]} Nxe6 {[%emt 0:00:36][%mdl 4096] Endgame KRN-KRN} ({Weaker is} 39... fxe6 40. Nxg5 Rd2+ 41. Kf1 Kxg5 42. Rxe6 $15) 40. Ra7 {[%emt 0:00:45]} Rd4 {[%emt 0:00:42]} 41. Nc3 {[%emt 0:00:22]} Rd2+ {[%emt 0:00:55]} 42. Kg1 {[%emt 0:00:22]} Rd3 {[%emt 0:00:45]} 43. Ne4 {[%emt 0:00:27]} (43. Ne2) 43... f5 {[%emt 0:00:33]} 44. Ra6 {[%emt 0:00:42]} fxe4 {[%emt 0:00:21]} 45. Rxe6+ {[%emt 0:00:11] KR-KR} Kf5 {[%emt 0:00:05]} 46. Rxh6 {[%emt 0:00:04]} Rxg3+ {[%emt 0:00:27]} (46... e3 $142 47. Kf1 Rd2 48. Ke1 Ke4 49. Rh7 Rf2 50. Re7+ Kf3 51. Rf7+ Kxg3 52. Ra7 Rh2 53. Rg7 Kf3 54. Rf7+ Kg2 55. Rg7 g3 56. Rg5 Kf3 57. Kd1 Rh1+ 58. Kc2 e2 59. Rf5+ Ke4 60. Rf7 e1=Q 61. Re7+ Kf3 62. Rf7+ Kg2 63. Rd7 Qe4+ 64. Kd2 Rb1 65. Rd8 Rb2+ 66. Kc3 Rc2+ 67. Kb3 Qc4+ 68. Ka3 Ra2#) 47. Kf2 {[%emt 0:00:10]} Rf3+ {[%emt 0:00:22]} 48. Ke2 {[%emt 0:00:08]} Kf4 {[%emt 0:01:07]} 49. Re6 {[%emt 0:00:28]} e3 {[%emt 0:01:10]} (49... g3 $142 50. Rf6+ Kg4 51. Rg6+ Kh3 52. Rh6+ Kg2) 50. Rg6 {[%emt 0:00:19]} Rf2+ {[%emt 0:00:20] Black mates.} 51. Ke1 {[%emt 0:00:07]} g3 {[%emt 0:00:14][%cal Bg4g3,Bg3g2][%mdl 32]} 52. Rf6+ {[%emt 0:00:14]} Ke5 {[%emt 0:00:49]} 53. Rg6 {[%emt 0:00:05]} g2 {[%emt 0:00:31] Weighted Error Value: White=0.83/Black=0.30} 0-1